[Event "November 21 Early 2023"]
[Site "https://www.chess.com"]
[Date "2023.11.21"]
[Round "6"]
[White "ATM622"]
[Black "Quirke, Jeffrey"]
[Result "0-1"]
[Board "157"]
[TimeControl "180+1"]
[BlackFideId "2013029"]
[WhiteElo "2445"]
[BlackElo "2220"]
[BlackTeam "USA"]
[WhiteClock "0:00:02"]
[BlackClock "0:00:17"]

1. d4 {[%clk 0:02:57]}  Nf6 {[%clk 0:02:59]} 2. c4 {[%clk 0:02:57]}  g6 {[%clk 0:02:58]} 3. g3 {[%clk 0:02:57]}  Bg7 {[%clk 0:02:57]} 4. Bg2 {[%clk 0:02:58]}  d5 {[%clk 0:02:57]} 5. Nf3 {[%clk 0:02:58]}  c6 {[%clk 0:02:53]} 6. O-O {[%clk 0:02:59]}  O-O {[%clk 0:02:53]} 7. Nbd2 {[%clk 0:02:54]}  Bf5 {[%clk 0:02:43]} 8. Nh4 {[%clk 0:02:50]}  Be6 {[%clk 0:02:34]} 9. cxd5 {[%clk 0:02:48]}  cxd5 {[%clk 0:02:34]} 10. Qb3 {[%clk 0:02:44]}  Qd7 {[%clk 0:02:33]} 11. Nhf3 {[%clk 0:02:42]}  Nc6 {[%clk 0:02:34]} 12. Ne5 {[%clk 0:02:35]}  Nxe5 {[%clk 0:02:32]} 13. dxe5 {[%clk 0:02:36]}  Ne4 {[%clk 0:02:27]} 14. Nxe4 {[%clk 0:02:27]}  dxe4 {[%clk 0:02:28]} 15. Bxe4 {[%clk 0:02:27]}  Bxb3 {[%clk 0:02:26]} 16. axb3 {[%clk 0:02:22]}  Bxe5 {[%clk 0:02:22]} 17. Bh6 {[%clk 0:02:23]}  Bg7 {[%clk 0:02:22]} 18. Rfd1 {[%clk 0:02:19]}  Qxd1+ {[%clk 0:02:16]} 19. Rxd1 {[%clk 0:02:17]}  Bxh6 {[%clk 0:02:17]} 20. Rd7 {[%clk 0:02:14]}  Rfd8 {[%clk 0:02:11]} 21. Rxb7 {[%clk 0:02:13]}  e6 {[%clk 0:01:58]} 22. h4 {[%clk 0:02:01]}  a5 {[%clk 0:01:55]} 23. h5 {[%clk 0:01:57]}  Rab8 {[%clk 0:01:50]} 24. Ra7 {[%clk 0:01:54]}  Rb5 {[%clk 0:01:47]} 25. hxg6 {[%clk 0:01:49]}  hxg6 {[%clk 0:01:48]} 26. Bc6 {[%clk 0:01:48]}  Rxb3 {[%clk 0:01:40]} 27. Rxa5 {[%clk 0:01:48]}  Rxb2 {[%clk 0:01:40]} 28. Bf3 {[%clk 0:01:47]}  Bf8 {[%clk 0:01:32]} 29. Ra7 {[%clk 0:01:44]}  Rc8 {[%clk 0:01:30]} 30. Kf1 {[%clk 0:01:40]}  Rc1+ {[%clk 0:01:28]} 31. Kg2 {[%clk 0:01:40]}  Rcc2 {[%clk 0:01:29]} 32. Kf1 {[%clk 0:01:40]}  Bc5 {[%clk 0:01:24]} 33. Rd7 {[%clk 0:01:19]}  Kg7 {[%clk 0:01:20]} 34. Bg4 {[%clk 0:01:16]}  Kf8 {[%clk 0:01:10]} 35. Bf3 {[%clk 0:01:04]}  g5 {[%clk 0:01:09]} 36. g4 {[%clk 0:01:01]}  Rd2 {[%clk 0:00:46]} 37. Rc7 {[%clk 0:00:59]}  Bb6 {[%clk 0:00:46]} 38. Rc8+ {[%clk 0:00:55]}  Kg7 {[%clk 0:00:40]} 39. Ra8 {[%clk 0:00:50]}  f5 {[%clk 0:00:39]} 40. gxf5 {[%clk 0:00:45]}  exf5 {[%clk 0:00:39]} 41. Bh5 {[%clk 0:00:46]}  g4 {[%clk 0:00:37]} 42. Kg2 {[%clk 0:00:25]}  Rxe2 {[%clk 0:00:36]} 43. Kg3 {[%clk 0:00:25]}  Rxf2 {[%clk 0:00:34]} 44. Kh4 {[%clk 0:00:23]}  Rh2+ {[%clk 0:00:30]} 45. Kg5 {[%clk 0:00:23]}  Rxh5+ {[%clk 0:00:31]} 46. Kxh5 {[%clk 0:00:22]}  g3 {[%clk 0:00:31]} 47. Ra3 {[%clk 0:00:16]}  Bf2 {[%clk 0:00:28]} 48. Ra6 {[%clk 0:00:06]}  Rb1 {[%clk 0:00:23]} 49. Kg5 {[%clk 0:00:05]}  g2 {[%clk 0:00:20]} 50. Rg6+ {[%clk 0:00:03]}  Kf7 {[%clk 0:00:20]} 51. Kxf5 {[%clk 0:00:02]}  g1=Q {[%clk 0:00:18]} 52. Rxg1 {[%clk 0:00:02]}  Bxg1 {[%clk 0:00:17]} 0-1

[Event "November 21 Early 2023"]
[Site "https://www.chess.com"]
[Date "2023.11.21"]
[Round "6"]
[White "Minko, Dmitry"]
[Black "Castillo Pena, Patricia Evarista"]
[Result "1-0"]
[Board "162"]
[TimeControl "180+1"]
[WhiteFideId "24188468"]
[BlackFideId "6412106"]
[WhiteElo "1992"]
[BlackElo "1861"]
[WhiteTeam "FID"]
[BlackTeam "DOM"]
[WhiteClock "0:02:46"]
[BlackClock "0:02:01"]

1. e4 {[%clk 0:03:00]}  c5 {[%clk 0:02:43]} 2. Nf3 {[%clk 0:03:01]}  d6 {[%clk 0:02:37]} 3. d4 {[%clk 0:03:01]}  cxd4 {[%clk 0:02:37]} 4. Nxd4 {[%clk 0:03:01]}  Nf6 {[%clk 0:02:38]} 5. Nc3 {[%clk 0:03:02]}  a6 {[%clk 0:02:38]} 6. f3 {[%clk 0:03:02]}  e5 {[%clk 0:02:38]} 7. Nb3 {[%clk 0:03:02]}  Be7 {[%clk 0:02:38]} 8. Be3 {[%clk 0:03:03]}  Be6 {[%clk 0:02:38]} 9. Qd2 {[%clk 0:03:03]}  Nbd7 {[%clk 0:02:39]} 10. O-O-O {[%clk 0:03:03]}  b5 {[%clk 0:02:39]} 11. g4 {[%clk 0:03:03]}  Nb6 {[%clk 0:02:32]} 12. g5 {[%clk 0:03:03]}  b4 {[%clk 0:02:26]} 13. gxf6 {[%clk 0:02:55]}  bxc3 {[%clk 0:02:25]} 14. Qxc3 {[%clk 0:02:55]}  Bxf6 {[%clk 0:02:09]} 15. Qc6+ {[%clk 0:02:55]}  Nd7 {[%clk 0:02:07]} 16. Qxd6 {[%clk 0:02:47]}  Be7 {[%clk 0:02:06]} 17. Qd2 {[%clk 0:02:47]}  O-O {[%clk 0:02:01]} 18. Rg1 {[%clk 0:02:46]} 1-0

[Event "November 21 Early 2023"]
[Site "https://www.chess.com"]
[Date "2023.11.21"]
[Round "6"]
[White "Skiadopoulos, Nikolaos"]
[Black "Yeritsyan, Hayk"]
[Result "0-1"]
[Board "163"]
[TimeControl "180+1"]
[WhiteFideId "4200772"]
[BlackFideId "13307320"]
[WhiteElo "2022"]
[BlackElo "2130"]
[WhiteTeam "GRE"]
[BlackTeam "ARM"]
[WhiteClock "0:02:03"]
[BlackClock "0:02:53"]

1. b4 {[%clk 0:03:00]}  a5 {[%clk 0:02:59]} 2. b5 {[%clk 0:03:00]}  e5 {[%clk 0:02:59]} 3. a4 {[%clk 0:02:57]}  d5 {[%clk 0:02:59]} 4. g3 {[%clk 0:02:54]}  Nf6 {[%clk 0:02:59]} 5. Bg2 {[%clk 0:02:54]}  Bc5 {[%clk 0:02:59]} 6. Bb2 {[%clk 0:02:48]}  O-O {[%clk 0:02:58]} 7. Bxe5 {[%clk 0:02:38]}  Bxf2+ {[%clk 0:02:58]} 8. Kxf2 {[%clk 0:02:36]}  Ng4+ {[%clk 0:02:58]} 9. Kf1 {[%clk 0:02:30]}  Nxe5 {[%clk 0:02:59]} 10. Nf3 {[%clk 0:02:29]}  Nxf3 {[%clk 0:02:58]} 11. exf3 {[%clk 0:02:28]}  Nd7 {[%clk 0:02:59]} 12. Kf2 {[%clk 0:02:27]}  Qf6 {[%clk 0:02:56]} 13. Nc3 {[%clk 0:02:23]}  Nb6 {[%clk 0:02:55]} 14. Re1 {[%clk 0:02:20]}  Qd4+ {[%clk 0:02:56]} 15. Re3 {[%clk 0:02:14]}  Nc4 {[%clk 0:02:55]} 16. Qe2 {[%clk 0:02:10]}  Nxe3 {[%clk 0:02:53]} 17. dxe3 {[%clk 0:02:03]}  Qxc3 {[%clk 0:02:53]} 0-1

[Event "November 21 Early 2023"]
[Site "https://www.chess.com"]
[Date "2023.11.21"]
[Round "6"]
[White "NelsonLinda"]
[Black "Koridze, Lile"]
[Result "1-0"]
[Board "164"]
[TimeControl "180+1"]
[BlackFideId "13612514"]
[WhiteElo "2554"]
[BlackElo "2061"]
[BlackTeam "GEO"]
[WhiteClock "0:00:05"]
[BlackClock "0:00:00"]

1. g3 {[%clk 0:02:51]}  Nf6 {[%clk 0:02:55]} 2. Bg2 {[%clk 0:02:51]}  d5 {[%clk 0:02:50]} 3. b3 {[%clk 0:02:52]}  c5 {[%clk 0:02:49]} 4. Bb2 {[%clk 0:02:52]}  Nc6 {[%clk 0:02:50]} 5. Nf3 {[%clk 0:02:51]}  Bf5 {[%clk 0:02:48]} 6. O-O {[%clk 0:02:51]}  e6 {[%clk 0:02:46]} 7. d3 {[%clk 0:02:51]}  Be7 {[%clk 0:02:39]} 8. Nbd2 {[%clk 0:02:51]}  O-O {[%clk 0:02:39]} 9. Re1 {[%clk 0:02:45]}  h6 {[%clk 0:02:39]} 10. e4 {[%clk 0:02:45]}  dxe4 {[%clk 0:02:39]} 11. dxe4 {[%clk 0:02:46]}  Bh7 {[%clk 0:02:38]} 12. Qe2 {[%clk 0:02:46]}  Qc7 {[%clk 0:02:38]} 13. Red1 {[%clk 0:02:41]}  Rfd8 {[%clk 0:02:37]} 14. a3 {[%clk 0:02:37]}  Nd4 {[%clk 0:02:36]} 15. Nxd4 {[%clk 0:02:36]}  cxd4 {[%clk 0:02:36]} 16. Rac1 {[%clk 0:02:34]}  e5 {[%clk 0:02:17]} 17. a4 {[%clk 0:02:32]}  Qd7 {[%clk 0:02:00]} 18. Nc4 {[%clk 0:02:31]}  Qe6 {[%clk 0:01:59]} 19. h3 {[%clk 0:02:23]}  Ne8 {[%clk 0:01:45]} 20. f4 {[%clk 0:02:20]}  exf4 {[%clk 0:01:43]} 21. gxf4 {[%clk 0:02:20]}  Nd6 {[%clk 0:01:42]} 22. Rxd4 {[%clk 0:02:12]}  Nxc4 {[%clk 0:01:04]} 23. Qxc4 {[%clk 0:02:11]}  Qb6 {[%clk 0:00:58]} 24. Kh1 {[%clk 0:02:07]}  Bf6 {[%clk 0:00:40]} 25. e5 {[%clk 0:01:38]}  Bh4 {[%clk 0:00:35]} 26. Bd5 {[%clk 0:00:57]}  Qg6 {[%clk 0:00:23]} 27. f5 {[%clk 0:00:36]}  Qg3 {[%clk 0:00:11]} 28. Bxf7+ {[%clk 0:00:21]}  Kh8 {[%clk 0:00:11]} 29. Qf1 {[%clk 0:00:16]}  Rxd4 {[%clk 0:00:08]} 30. Bxd4 {[%clk 0:00:17]}  Rf8 {[%clk 0:00:06]} 31. e6 {[%clk 0:00:15]}  Rd8 {[%clk 0:00:06]} 32. c3 {[%clk 0:00:13]}  Bg5 {[%clk 0:00:04]} 33. Rc2 {[%clk 0:00:11]}  Bxf5 {[%clk 0:00:04]} 34. Qxf5 {[%clk 0:00:09]}  Bf4 {[%clk 0:00:04]} 35. Qg4 {[%clk 0:00:03]}  Qe1+ {[%clk 0:00:04]} 36. Qg1 {[%clk 0:00:04]}  Qe4+ {[%clk 0:00:04]} 37. Qg2 {[%clk 0:00:04]}  Rxd4 {[%clk 0:00:03]} 38. Qxe4 {[%clk 0:00:04]}  Rxe4 {[%clk 0:00:04]} 39. Kg2 {[%clk 0:00:03]}  Be5 {[%clk 0:00:04]} 40. Kf3 {[%clk 0:00:03]}  Re1 {[%clk 0:00:04]} 41. c4 {[%clk 0:00:03]}  Rb1 {[%clk 0:00:04]} 42. Rd2 {[%clk 0:00:03]}  Bf6 {[%clk 0:00:04]} 43. Re2 {[%clk 0:00:02]}  Rxb3+ {[%clk 0:00:04]} 44. Ke4 {[%clk 0:00:03]}  Rb4 {[%clk 0:00:04]} 45. Kd5 {[%clk 0:00:03]}  Rxa4 {[%clk 0:00:04]} 46. e7 {[%clk 0:00:04]}  Bxe7 {[%clk 0:00:05]} 47. Rxe7 {[%clk 0:00:04]}  g5 {[%clk 0:00:05]} 48. Rxb7 {[%clk 0:00:04]}  Ra3 {[%clk 0:00:04]} 49. Be6 {[%clk 0:00:04]}  Re3 {[%clk 0:00:02]} 50. c5 {[%clk 0:00:04]}  Rd3+ {[%clk 0:00:03]} 51. Ke5 {[%clk 0:00:04]}  Rd1 {[%clk 0:00:03]} 52. c6 {[%clk 0:00:04]}  Re1+ {[%clk 0:00:03]} 53. Kf6 {[%clk 0:00:05]}  Rf1+ {[%clk 0:00:03]} 54. Kg6 {[%clk 0:00:05]}  Rf8 {[%clk 0:00:03]} 55. c7 {[%clk 0:00:05]}  Re8 {[%clk 0:00:00]} 56. Rb8 {[%clk 0:00:05]} 1-0

[Event "November 21 Early 2023"]
[Site "https://www.chess.com"]
[Date "2023.11.21"]
[Round "6"]
[White "JuniorJumper"]
[Black "Zivic, Dragan"]
[Result "1-0"]
[Board "165"]
[TimeControl "180+1"]
[BlackFideId "904740"]
[WhiteElo "2543"]
[BlackElo "2073"]
[BlackTeam "SRB"]
[WhiteClock "0:00:55"]
[BlackClock "0:00:58"]

1. Nf3 {[%clk 0:02:56]}  Nf6 {[%clk 0:02:53]} 2. g3 {[%clk 0:02:55]}  b6 {[%clk 0:02:53]} 3. Bg2 {[%clk 0:02:56]}  Bb7 {[%clk 0:02:54]} 4. O-O {[%clk 0:02:57]}  e6 {[%clk 0:02:54]} 5. b3 {[%clk 0:02:58]}  d5 {[%clk 0:02:52]} 6. Bb2 {[%clk 0:02:58]}  Be7 {[%clk 0:02:53]} 7. d3 {[%clk 0:02:57]}  O-O {[%clk 0:02:52]} 8. Nbd2 {[%clk 0:02:58]}  c5 {[%clk 0:02:52]} 9. Ne5 {[%clk 0:02:58]}  Nfd7 {[%clk 0:02:51]} 10. Nxd7 {[%clk 0:02:55]}  Nxd7 {[%clk 0:02:50]} 11. e4 {[%clk 0:02:56]}  Bf6 {[%clk 0:02:48]} 12. Bxf6 {[%clk 0:02:51]}  Qxf6 {[%clk 0:02:42]} 13. Kh1 {[%clk 0:02:22]}  Rfd8 {[%clk 0:02:34]} 14. Qe2 {[%clk 0:02:20]}  Qc3 {[%clk 0:02:31]} 15. Rac1 {[%clk 0:02:14]}  Nf6 {[%clk 0:02:30]} 16. e5 {[%clk 0:02:12]}  Nd7 {[%clk 0:02:17]} 17. f4 {[%clk 0:02:11]}  g6 {[%clk 0:02:10]} 18. h4 {[%clk 0:01:55]}  h5 {[%clk 0:02:06]} 19. Nf3 {[%clk 0:01:54]}  Nf8 {[%clk 0:01:54]} 20. Ng5 {[%clk 0:01:23]}  Nh7 {[%clk 0:01:49]} 21. Rf2 {[%clk 0:01:23]}  Rac8 {[%clk 0:01:46]} 22. Rcf1 {[%clk 0:01:17]}  c4 {[%clk 0:01:43]} 23. dxc4 {[%clk 0:01:16]}  Qxg3 {[%clk 0:01:35]} 24. Rf3 {[%clk 0:01:06]}  Qxh4+ {[%clk 0:01:33]} 25. Rh3 {[%clk 0:01:02]}  Qxh3+ {[%clk 0:01:19]} 26. Nxh3 {[%clk 0:00:58]}  Ba8 {[%clk 0:01:06]} 27. cxd5 {[%clk 0:00:57]}  Bxd5 {[%clk 0:01:05]} 28. Bxd5 {[%clk 0:00:56]}  Rxd5 {[%clk 0:01:06]} 29. Rd1 {[%clk 0:00:57]}  Rcd8 {[%clk 0:01:07]} 30. Rxd5 {[%clk 0:00:57]}  Rxd5 {[%clk 0:00:58]} 31. Nf2 {[%clk 0:00:55]} 1-0

[Event "November 21 Early 2023"]
[Site "https://www.chess.com"]
[Date "2023.11.21"]
[Round "6"]
[White "Kovacsy, Barnabas"]
[Black "KorolDimitriy75"]
[Result "0-1"]
[Board "168"]
[TimeControl "180+1"]
[WhiteFideId "769290"]
[WhiteElo "2130"]
[BlackElo "2328"]
[WhiteTeam "HUN"]
[WhiteClock "0:00:29"]
[BlackClock "0:00:06"]

1. e4 {[%clk 0:03:00]}  c5 {[%clk 0:03:00]} 2. Nf3 {[%clk 0:02:59]}  d6 {[%clk 0:03:00]} 3. d4 {[%clk 0:02:58]}  cxd4 {[%clk 0:03:01]} 4. Nxd4 {[%clk 0:02:59]}  Nf6 {[%clk 0:03:02]} 5. f3 {[%clk 0:02:59]}  g6 {[%clk 0:03:02]} 6. c4 {[%clk 0:02:58]}  Bg7 {[%clk 0:03:03]} 7. Nc3 {[%clk 0:02:58]}  O-O {[%clk 0:03:04]} 8. Be3 {[%clk 0:02:58]}  Nc6 {[%clk 0:03:04]} 9. Qd2 {[%clk 0:02:57]}  Bd7 {[%clk 0:03:05]} 10. Be2 {[%clk 0:02:57]}  Nxd4 {[%clk 0:03:04]} 11. Bxd4 {[%clk 0:02:58]}  a5 {[%clk 0:03:05]} 12. b3 {[%clk 0:02:55]}  Bc6 {[%clk 0:03:05]} 13. O-O {[%clk 0:02:53]}  Nd7 {[%clk 0:03:05]} 14. Bf2 {[%clk 0:02:53]}  Nc5 {[%clk 0:03:03]} 15. Rab1 {[%clk 0:02:53]}  Qc7 {[%clk 0:02:59]} 16. a3 {[%clk 0:02:51]}  Rfc8 {[%clk 0:02:57]} 17. Rfc1 {[%clk 0:02:44]}  a4 {[%clk 0:02:55]} 18. b4 {[%clk 0:02:31]}  Nb3 {[%clk 0:02:55]} 19. Rxb3 {[%clk 0:02:32]}  axb3 {[%clk 0:02:56]} 20. Qb2 {[%clk 0:02:31]}  Ba4 {[%clk 0:02:13]} 21. Qb1 {[%clk 0:02:18]}  Bxc3 {[%clk 0:01:36]} 22. Rxc3 {[%clk 0:02:19]}  b5 {[%clk 0:01:36]} 23. c5 {[%clk 0:02:10]}  dxc5 {[%clk 0:01:34]} 24. Bxc5 {[%clk 0:02:03]}  Qe5 {[%clk 0:01:26]} 25. Qc1 {[%clk 0:01:48]}  Rc7 {[%clk 0:01:01]} 26. f4 {[%clk 0:01:46]}  Qe6 {[%clk 0:00:45]} 27. Bf3 {[%clk 0:01:30]}  Rac8 {[%clk 0:00:45]} 28. g4 {[%clk 0:01:30]}  Qd7 {[%clk 0:00:33]} 29. Kf2 {[%clk 0:01:28]}  Rxc5 {[%clk 0:00:25]} 30. bxc5 {[%clk 0:01:22]}  Qd4+ {[%clk 0:00:24]} 31. Kg3 {[%clk 0:01:17]}  b2 {[%clk 0:00:19]} 32. Qxb2 {[%clk 0:01:15]}  Rxc5 {[%clk 0:00:19]} 33. Rc2 {[%clk 0:00:57]}  Qg1+ {[%clk 0:00:12]} 34. Rg2 {[%clk 0:00:56]}  Qe1+ {[%clk 0:00:11]} 35. Qf2 {[%clk 0:00:55]}  Qxf2+ {[%clk 0:00:10]} 36. Rxf2 {[%clk 0:00:54]}  Rc3 {[%clk 0:00:11]} 37. g5 {[%clk 0:00:44]}  Rxa3 {[%clk 0:00:09]} 38. Kg4 {[%clk 0:00:43]}  Kg7 {[%clk 0:00:08]} 39. e5 {[%clk 0:00:41]}  Bb3 {[%clk 0:00:07]} 40. Rb2 {[%clk 0:00:40]}  Be6+ {[%clk 0:00:07]} 41. Kg3 {[%clk 0:00:38]}  Bd5 {[%clk 0:00:07]} 42. Rxb5 {[%clk 0:00:37]}  Bxf3 {[%clk 0:00:07]} 43. Kh4 {[%clk 0:00:35]}  Be4 {[%clk 0:00:06]} 44. Rb7 {[%clk 0:00:32]}  Bf5 {[%clk 0:00:06]} 45. Rb3 {[%clk 0:00:28]}  Rxb3 {[%clk 0:00:06]} 46. e6 {[%clk 0:00:29]}  Rh3# {[%clk 0:00:06]} 0-1

[Event "November 21 Early 2023"]
[Site "https://www.chess.com"]
[Date "2023.11.21"]
[Round "6"]
[White "Maect19"]
[Black "PoXerStar"]
[Result "1/2-1/2"]
[Board "169"]
[TimeControl "180+1"]
[WhiteElo "2327"]
[BlackElo "2424"]
[WhiteClock "0:00:08"]
[BlackClock "0:00:04"]

1. d4 {[%clk 0:03:00]}  d5 {[%clk 0:02:59]} 2. Nf3 {[%clk 0:03:01]}  c5 {[%clk 0:02:57]} 3. e3 {[%clk 0:03:00]}  Nf6 {[%clk 0:02:55]} 4. Bd3 {[%clk 0:03:00]}  cxd4 {[%clk 0:02:49]} 5. exd4 {[%clk 0:03:00]}  Bg4 {[%clk 0:02:46]} 6. c3 {[%clk 0:02:59]}  Nc6 {[%clk 0:02:45]} 7. Bf4 {[%clk 0:02:58]}  e6 {[%clk 0:02:43]} 8. Nbd2 {[%clk 0:02:58]}  Bd6 {[%clk 0:02:43]} 9. Bxd6 {[%clk 0:02:58]}  Qxd6 {[%clk 0:02:43]} 10. h3 {[%clk 0:02:57]}  Bh5 {[%clk 0:02:42]} 11. Qb3 {[%clk 0:02:57]}  O-O {[%clk 0:02:41]} 12. O-O {[%clk 0:02:55]}  Rab8 {[%clk 0:02:37]} 13. Rfe1 {[%clk 0:02:51]}  Qc7 {[%clk 0:02:27]} 14. Ne5 {[%clk 0:02:49]}  Nxe5 {[%clk 0:02:24]} 15. Rxe5 {[%clk 0:02:48]}  Bg6 {[%clk 0:02:24]} 16. Bxg6 {[%clk 0:02:47]}  hxg6 {[%clk 0:02:25]} 17. a4 {[%clk 0:02:41]}  a6 {[%clk 0:02:10]} 18. Re2 {[%clk 0:02:29]}  b5 {[%clk 0:02:10]} 19. axb5 {[%clk 0:02:05]}  axb5 {[%clk 0:02:09]} 20. Nf3 {[%clk 0:01:52]}  b4 {[%clk 0:02:07]} 21. cxb4 {[%clk 0:01:50]}  Qb6 {[%clk 0:02:02]} 22. Ra4 {[%clk 0:01:45]}  Rfc8 {[%clk 0:02:00]} 23. Rc2 {[%clk 0:01:43]}  Ne4 {[%clk 0:01:57]} 24. Qd3 {[%clk 0:01:28]}  Rc7 {[%clk 0:01:30]} 25. Nd2 {[%clk 0:01:23]}  Nxd2 {[%clk 0:01:10]} 26. Rxd2 {[%clk 0:01:17]}  Rc4 {[%clk 0:01:09]} 27. b3 {[%clk 0:01:08]}  Rxb4 {[%clk 0:01:08]} 28. Rxb4 {[%clk 0:01:08]}  Qxb4 {[%clk 0:01:08]} 29. Rc2 {[%clk 0:01:03]}  Qxb3 {[%clk 0:01:00]} 30. Rc8+ {[%clk 0:01:01]}  Kh7 {[%clk 0:01:00]} 31. Qxb3 {[%clk 0:01:01]}  Rxb3 {[%clk 0:00:59]} 32. Rc7 {[%clk 0:00:58]}  f6 {[%clk 0:00:58]} 33. Re7 {[%clk 0:00:56]}  Rb6 {[%clk 0:00:55]} 34. g3 {[%clk 0:00:54]}  g5 {[%clk 0:00:49]} 35. Kg2 {[%clk 0:00:52]}  Kg6 {[%clk 0:00:49]} 36. Kf3 {[%clk 0:00:51]}  Ra6 {[%clk 0:00:20]} 37. Ke3 {[%clk 0:00:46]}  Kh6 {[%clk 0:00:18]} 38. Kf3 {[%clk 0:00:46]}  Kh7 {[%clk 0:00:17]} 39. Kg4 {[%clk 0:00:43]}  Kg8 {[%clk 0:00:16]} 40. Kh5 {[%clk 0:00:41]}  Kh7 {[%clk 0:00:16]} 41. h4 {[%clk 0:00:35]}  gxh4 {[%clk 0:00:15]} 42. Kxh4 {[%clk 0:00:35]}  Ra4 {[%clk 0:00:15]} 43. Rxe6 {[%clk 0:00:31]}  Rxd4+ {[%clk 0:00:15]} 44. f4 {[%clk 0:00:25]}  Kg6 {[%clk 0:00:08]} 45. Kg4 {[%clk 0:00:23]}  Rd3 {[%clk 0:00:03]} 46. Rd6 {[%clk 0:00:22]}  Kf7 {[%clk 0:00:02]} 47. Rd7+ {[%clk 0:00:19]}  Kg6 {[%clk 0:00:03]} 48. Rd6 {[%clk 0:00:20]}  d4 {[%clk 0:00:02]} 49. Rd7 {[%clk 0:00:18]}  Rd1 {[%clk 0:00:02]} 50. Rd6 {[%clk 0:00:15]}  d3 {[%clk 0:00:02]} 51. Kf3 {[%clk 0:00:13]}  d2 {[%clk 0:00:01]} 52. Ke2 {[%clk 0:00:13]}  Rg1 {[%clk 0:00:02]} 53. Rxd2 {[%clk 0:00:10]}  Rxg3 {[%clk 0:00:02]} 54. Kf2 {[%clk 0:00:10]}  Rg4 {[%clk 0:00:01]} 55. Kf3 {[%clk 0:00:10]}  Rg1 {[%clk 0:00:02]} 56. Rd7 {[%clk 0:00:09]}  Rf1+ {[%clk 0:00:01]} 57. Kg3 {[%clk 0:00:09]}  f5 {[%clk 0:00:01]} 58. Rd6+ {[%clk 0:00:09]}  Kh5 {[%clk 0:00:01]} 59. Re6 {[%clk 0:00:08]}  g5 {[%clk 0:00:01]} 60. fxg5 {[%clk 0:00:08]}  Kxg5 {[%clk 0:00:02]} 61. Kg2 {[%clk 0:00:08]}  Rf4 {[%clk 0:00:02]} 62. Re3 {[%clk 0:00:07]}  Re4 {[%clk 0:00:02]} 63. Rxe4 {[%clk 0:00:06]}  fxe4 {[%clk 0:00:03]} 64. Kf2 {[%clk 0:00:07]}  Kf4 {[%clk 0:00:03]} 65. Ke2 {[%clk 0:00:07]}  e3 {[%clk 0:00:04]} 66. Ke1 {[%clk 0:00:07]}  e2 {[%clk 0:00:04]} 67. Kxe2 {[%clk 0:00:08]} 1/2-1/2

[Event "November 21 Early 2023"]
[Site "https://www.chess.com"]
[Date "2023.11.21"]
[Round "6"]
[White "Kornyukov, Alexey"]
[Black "Martin Duque, Jesus"]
[Result "0-1"]
[Board "170"]
[TimeControl "180+1"]
[WhiteFideId "4150457"]
[BlackFideId "2208954"]
[WhiteElo "2352"]
[BlackElo "2319"]
[WhiteTeam "RUS"]
[BlackTeam "ESP"]
[WhiteClock "0:00:21"]
[BlackClock "0:01:23"]

1. d4 {[%clk 0:03:00]}  Nf6 {[%clk 0:02:57]} 2. Nc3 {[%clk 0:02:59]}  d5 {[%clk 0:02:57]} 3. Bg5 {[%clk 0:02:59]}  Nbd7 {[%clk 0:02:53]} 4. Nf3 {[%clk 0:02:56]}  e6 {[%clk 0:02:53]} 5. e4 {[%clk 0:02:56]}  h6 {[%clk 0:02:52]} 6. Bh4 {[%clk 0:02:50]}  g5 {[%clk 0:02:52]} 7. e5 {[%clk 0:02:50]}  gxh4 {[%clk 0:02:51]} 8. exf6 {[%clk 0:02:49]}  Qxf6 {[%clk 0:02:48]} 9. Bd3 {[%clk 0:02:48]}  a6 {[%clk 0:02:48]} 10. Qe2 {[%clk 0:02:43]}  Rg8 {[%clk 0:02:45]} 11. Rg1 {[%clk 0:02:38]}  c5 {[%clk 0:02:45]} 12. dxc5 {[%clk 0:02:36]}  Bxc5 {[%clk 0:02:34]} 13. Nxd5 {[%clk 0:02:25]}  Qxb2 {[%clk 0:02:34]} 14. Rd1 {[%clk 0:01:53]}  Bd6 {[%clk 0:02:15]} 15. Nxh4 {[%clk 0:01:37]}  Kd8 {[%clk 0:02:02]} 16. Qh5 {[%clk 0:01:13]}  exd5 {[%clk 0:01:58]} 17. Qxf7 {[%clk 0:01:12]}  Re8+ {[%clk 0:01:52]} 18. Kf1 {[%clk 0:01:11]}  Qf6 {[%clk 0:01:49]} 19. Qxd5 {[%clk 0:01:09]}  Nb6 {[%clk 0:01:43]} 20. Qh5 {[%clk 0:01:00]}  Kc7 {[%clk 0:01:39]} 21. Qxe8 {[%clk 0:00:59]}  Bg4 {[%clk 0:01:39]} 22. Qe1 {[%clk 0:00:38]}  Bxd1 {[%clk 0:01:37]} 23. Qxd1 {[%clk 0:00:39]}  Qxh4 {[%clk 0:01:38]} 24. Qd2 {[%clk 0:00:38]}  Rf8 {[%clk 0:01:36]} 25. Qc3+ {[%clk 0:00:38]}  Kb8 {[%clk 0:01:36]} 26. f3 {[%clk 0:00:34]}  Nd5 {[%clk 0:01:28]} 27. Qd2 {[%clk 0:00:28]}  Re8 {[%clk 0:01:25]} 28. Be4 {[%clk 0:00:27]}  Rxe4 {[%clk 0:01:23]} 29. Qxd5 {[%clk 0:00:21]}  Re1# {[%clk 0:01:23]} 0-1

[Event "November 21 Early 2023"]
[Site "https://www.chess.com"]
[Date "2023.11.21"]
[Round "6"]
[White "Figorito, Nick"]
[Black "Kuchava, Ana"]
[Result "1-0"]
[Board "173"]
[TimeControl "180+1"]
[WhiteFideId "30923689"]
[BlackFideId "13605348"]
[WhiteElo "2381"]
[BlackElo "1950"]
[WhiteTeam "USA"]
[BlackTeam "GEO"]
[WhiteClock "0:00:04"]
[BlackClock "0:00:00"]

1. Nf3 {[%clk 0:03:00]}  d5 {[%clk 0:02:57]} 2. g3 {[%clk 0:03:01]}  c5 {[%clk 0:02:54]} 3. Bg2 {[%clk 0:03:01]}  Nc6 {[%clk 0:02:53]} 4. d4 {[%clk 0:03:02]}  cxd4 {[%clk 0:02:51]} 5. Nxd4 {[%clk 0:03:03]}  e6 {[%clk 0:02:52]} 6. c4 {[%clk 0:03:02]}  Nf6 {[%clk 0:02:52]} 7. Nc3 {[%clk 0:03:02]}  Be7 {[%clk 0:02:52]} 8. cxd5 {[%clk 0:03:02]}  exd5 {[%clk 0:02:52]} 9. O-O {[%clk 0:03:02]}  O-O {[%clk 0:02:53]} 10. Bf4 {[%clk 0:03:02]}  Be6 {[%clk 0:02:52]} 11. Ncb5 {[%clk 0:03:00]}  Qd7 {[%clk 0:02:31]} 12. Rc1 {[%clk 0:02:53]}  Rac8 {[%clk 0:02:25]} 13. a3 {[%clk 0:02:29]}  a6 {[%clk 0:02:22]} 14. Nc3 {[%clk 0:02:25]}  h6 {[%clk 0:02:11]} 15. Na4 {[%clk 0:02:20]}  Qd8 {[%clk 0:02:02]} 16. Qd3 {[%clk 0:02:11]}  Qa5 {[%clk 0:01:55]} 17. Nc3 {[%clk 0:01:58]}  Rfd8 {[%clk 0:01:50]} 18. Nb3 {[%clk 0:01:49]}  Qb6 {[%clk 0:01:20]} 19. Na4 {[%clk 0:01:49]}  Qb5 {[%clk 0:01:12]} 20. Qxb5 {[%clk 0:01:44]}  axb5 {[%clk 0:01:13]} 21. Nac5 {[%clk 0:01:40]}  b6 {[%clk 0:00:53]} 22. Nd3 {[%clk 0:01:26]}  Na5 {[%clk 0:00:47]} 23. Nd4 {[%clk 0:01:11]}  Nc4 {[%clk 0:00:25]} 24. Nxb5 {[%clk 0:01:06]}  g5 {[%clk 0:00:25]} 25. Be3 {[%clk 0:00:54]}  Nxe3 {[%clk 0:00:25]} 26. fxe3 {[%clk 0:00:55]}  Ng4 {[%clk 0:00:25]} 27. e4 {[%clk 0:00:41]}  dxe4 {[%clk 0:00:11]} 28. Bxe4 {[%clk 0:00:39]}  Ne3 {[%clk 0:00:05]} 29. Rxc8 {[%clk 0:00:29]}  Rxc8 {[%clk 0:00:04]} 30. Rc1 {[%clk 0:00:30]}  Nc4 {[%clk 0:00:02]} 31. Bf3 {[%clk 0:00:16]}  f5 {[%clk 0:00:02]} 32. Bb7 {[%clk 0:00:09]}  Rd8 {[%clk 0:00:02]} 33. Nc7 {[%clk 0:00:06]}  Bf7 {[%clk 0:00:00]} 34. Bd5 {[%clk 0:00:04]} 1-0